Workbook

Sheet START
B1: ÜBER DIESE VORLAGE
B2: Verfolgen Sie in der Arbeitsmappe "Tracker für Veranstaltungsplanung" Projektparameter, Projektdetails und Projektsummen nach.
B3: Geben Sie Informationen im Arbeitsblatt "Projektparameter" (zum Aktualisieren der Säulendiagramme) und im Arbeitsblatt "Projektdetails"ein. Die PivotTable im Arbeitsblatt "Projektsummen" wird automatisch aktualisiert.
B4: Geben Sie im Arbeitsblatt "Parameter" den Firmenname ein. Dann wird er in anderen Arbeitsblättern automatisch aktualisiert.
B5: Anmerkung:
B6: Weitere Anweisungen wurden in Spalte A jedes Arbeitsblatts in der Arbeitsmappe TRACKER FÜR VERANSTALTUNGSPLANUNG bereitgestellt. Diese Texte wurden absichtlich ausgeblendet. Um die Texte zu entfernen, wählen Sie Spalte A und dann ENTF aus. Um die Texte einzublenden, wählen Sie Spalte A aus, und ändern Sie die Schriftfarbe.
B7: Wenn Sie mehr zu Tabellen in Arbeitsblättern erfahren möchten, drücken Sie die UMSCHALTTASTE und dann innerhalb einer Tabelle F10, und wählen Sie die Option "TABELLE" und dann "ALTERNATIVTEXT" aus.

Sheet PROJEKTPARAMETER
A1: Erstellen Sie Projektparameter in diesem Arbeitsblatt. Geben Sie den Firmenname in der Zelle rechts ein. Hilfreiche Anweisungen stehen in Zellen in dieser Spalte. Drücken Sie die NACH-UNTEN-TASTE, um anzufangen. | B1: Firmenname
A2: Der Titel dieses Arbeitsblatts steht in der Zelle rechts. | B2: Projekt-Tracker "Veranstaltungsmanagement"
A3: Die Vertraulichkeitsnachricht steht in der Zelle rechts. | B3: ="Vertraulicher "&B1 -> Vertraulicher Firmenname
A4: Der Tipp steht in der Zelle rechts. | B4: Schattierte Zellen werden automatisch berechnet. Sie brauchen darin nichts einzugeben.
A5: Geben Sie Details in der Tabelle "Parameter" ab der Zelle rechts ein. Die nächste Anweisung finden Sie in Zelle A12. | B5: PROJEKTTYP | C5: KUNDENBETREUER | D5: PROJEKTMANAGER | E5: STRATEGIEMANAGER | F5: DESIGNSPEZIALIST | G5: VERANSTALTUNGSPERSONAL | H5: VERWALTUNGSPERSONAL | I5: Ergebnis
B6: Entwicklung des Veranstaltungskonzepts | C6: 20% | D6: 10% | E6: 60% | F6: 0% | G6: 0% | H6: 10% | I6: =SUM(Parameter[[#This Row],[KUNDENBETREUER]:[VERWALTUNGSPERSONAL]]) -> 100%
B7: Veranstaltungsplanung | C7: 20% | D7: 50% | E7: 10% | F7: 10% | G7: 0% | H7: 10% | I7: =SUM(Parameter[[#This Row],[KUNDENBETREUER]:[VERWALTUNGSPERSONAL]]) -> 100%
B8: Veranstaltungsdesign | C8: 20% | D8: 20% | E8: 0% | F8: 50% | G8: 0% | H8: 10% | I8: =SUM(Parameter[[#This Row],[KUNDENBETREUER]:[VERWALTUNGSPERSONAL]]) -> 100%
B9: Veranstaltungslogistik | C9: 20% | D9: 60% | E9: 0% | F9: 0% | G9: 10% | H9: 10% | I9: =SUM(Parameter[[#This Row],[KUNDENBETREUER]:[VERWALTUNGSPERSONAL]]) -> 100%
B10: Veranstaltungspersonal | C10: 20% | D10: 10% | E10: 0% | F10: 0% | G10: 60% | H10: 10% | I10: =SUM(Parameter[[#This Row],[KUNDENBETREUER]:[VERWALTUNGSPERSONAL]]) -> 100%
B11: Veranstaltungsbewertung | C11: 20% | D11: 20% | E11: 20% | F11: 20% | G11: 0% | H11: 20% | I11: =SUM(Parameter[[#This Row],[KUNDENBETREUER]:[VERWALTUNGSPERSONAL]]) -> 100%
A12: Geben Sie kombinierte Tarife in den Zellen rechts (C12 bis H12) ein. Die nächste Anweisung finden Sie in Zelle A14. | B12: Kombinierte Tarife | C12: 180 € | D12: 120 € | E12: 150 € | F12: 100 € | G12: 80 € | H12: 60 €
A14: Ein Säulendiagramm mit geplante Kosten im Vergleich zu tatsächliche Kosten befindet sich in der Zelle rechts, und ein Säulendiagramm mit geplante Stunden im Vergleich zu tatsächliche Stunden befindet sich in Zelle F14. | F14: Ein Säulendiagramm mit geplanten Stunden im Vergleich zu tatsächlichen Stunden befindet sich in dieser Zelle.
C15: KUNDENBETREUER | D15: PROJEKTMANAGER | E15: STRATEGIEMANAGER | F15: DESIGNSPEZIALIST | G15: VERANSTALTUNGSPERSONAL | H15: VERWALTUNGSPERSONAL
B16: GEPLANTE KOSTEN | C16: =SUBTOTAL(109,ProjektDetails[KUNDENBETREUER]) -> 54,000.00 € | D16: =SUBTOTAL(109,ProjektDetails[PROJEKTMANAGER]) -> 52,200.00 € | E16: =SUBTOTAL(109,ProjektDetails[STRATEGIEMANAGER]) -> 24,000.00 € | F16: =SUBTOTAL(109,ProjektDetails[DESIGNSPEZIALIST]) -> 29,000.00 € | G16: =SUBTOTAL(109,ProjektDetails[VERANSTALTUNGSPERSONAL]) -> 13,200.00 € | H16: =SUBTOTAL(109,ProjektDetails[VERWALTUNGSPERSONAL]) -> 9,000.00 €
B17: TATSÄCHLICHE KOSTEN | C17: =SUBTOTAL(109,ProjektDetails[[KUNDENBETREUER ]]) -> 54,360.00 € | D17: =SUBTOTAL(109,ProjektDetails[[PROJEKTMANAGER ]]) -> 51,540.00 € | E17: =SUBTOTAL(109,ProjektDetails[[STRATEGIEMANAGER ]]) -> 25,650.00 € | F17: =SUBTOTAL(109,ProjektDetails[[DESIGNSPEZIALIST ]]) -> 28,900.00 € | G17: =SUBTOTAL(109,ProjektDetails[[VERANSTALTUNGSPERSONAL ]]) -> 13,400.00 € | H17: =SUBTOTAL(109,ProjektDetails[[VERWALTUNGSPERSONAL ]]) -> 9,060.00 €
B18: GEPLANTE STUNDEN | C18: =C16/$C$12 -> 300.00 | D18: =D16/$C$12 -> 290.00 | E18: 133.33 | F18: 161.11 | G18: 73.33 | H18: 50.00
B19: TATSÄCHLICHE STUNDEN | C19: =C17/$C$12 -> 302.00 | D19: =D17/$C$12 -> 286.33 | E19: =E17/$C$12 -> 142.50 | F19: =F17/$C$12 -> 160.56 | G19: =G17/$C$12 -> 74.44 | H19: =H17/$C$12 -> 50.33
B24: Ein Säulendiagramm mit geplanten Kosten im Vergleich zu tatsächlichen Kosten befindet sich in dieser Zelle.

Sheet PROJEKTDETAILS
A1: Erstellen Sie Projektdetails in diesem Arbeitsblatt. Der Firmenname in der Zelle rechts wird automatisch aktualisiert. Hilfreiche Anweisungen stehen in Zellen in dieser Spalte. Drücken Sie die NACH-UNTEN-TASTE, um anzufangen. | B1: =PROJEKTPARAMETER!B1 -> Firmenname
A2: Der Titel dieses Arbeitsblatts steht in der Zelle rechts. | B2: Projekt-Tracker "Veranstaltungsmanagement"
A3: Die Vertraulichkeitsnachricht steht in der Zelle rechts. | B3: =PROJEKTPARAMETER!B3 -> Vertraulicher Firmenname
A4: Geben Sie Informationen in der Tabelle "Projektdetails" ab der Zelle rechts ein. INFO Wenn Sie in der Tabelle rechts eine Zeile hinzufügen möchten, wählen Sie die Zelle unten rechts im Textkörper (nicht die Ergebniszeile) aus, und drücken Sie die TAB-Taste, oder drücken Sie in der Tabelle dort, wo die Zeile eingefügt werden soll, UMSCHALT+F10, und wählen Sie "Einfügen" | "Tabellenzeilen Oben/Unten" aus. Achten Sie darauf, dass alle nicht genutzten Zeilen gelöscht werden, da die PivotTable PROJEKTSUMMEN alle Zellen der Tabelle verwendet und ansonsten fehlerhafte Ergebnisse ausgegeben würden. | B4: PROJEKTNAME | C4: PROJEKTTYP | D4: VORAUSSICHTLICHER START | E4: VORAUSSICHTLICHES ENDE | F4: TATSÄCHLICHER START | G4: TATSÄCHLICHES ENDE | H4: GESCHÄTZTE ARBEIT | I4: IST-ARBEIT | J4: GESCHÄTZTE DAUER | K4: TATSÄCHLICHE DAUER | L4: KUNDENBETREUER | M4: PROJEKTMANAGER | N4: STRATEGIEMANAGER | O4: DESIGNSPEZIALIST | P4: VERANSTALTUNGSPERSONAL | Q4: VERWALTUNGSPERSONAL | R4: KUNDENBETREUER | S4: PROJEKTMANAGER | T4: STRATEGIEMANAGER | U4: DESIGNSPEZIALIST | V4: VERANSTALTUNGSPERSONAL | W4: VERWALTUNGSPERSONAL
B5: Projekt 1 | C5: Entwicklung des Veranstaltungskonzepts | D5: =DATE(YEAR(TODAY()),6,9) -> 2019-06-09 | E5: =DATE(YEAR(TODAY()),8,7) -> 2019-08-07 | F5: =DATE(YEAR(TODAY()),6,29) -> 2019-06-29 | G5: =DATE(YEAR(TODAY()),9,3) -> 2019-09-03 | H5: 200 | I5: 220 | J5: =DAYS360(ProjektDetails[[#This Row],[VORAUSSICHTLICHER START]],ProjektDetails[[#This Row],[VORAUSSICHTLICHES ENDE]],FALSE) -> 58 | K5: =DAYS360(ProjektDetails[[#This Row],[TATSÄCHLICHER START]],ProjektDetails[[#This Row],[TATSÄCHLICHES ENDE]],FALSE) -> 64 | L5: =INDEX(Parameter[],MATCH(ProjektDetails[[#This Row],[PROJEKTTYP]],Parameter[PROJEKTTYP],0),MATCH(ProjektDetails[[#Headers],[KUNDENBETREUER]],Parameter[#Headers],0))*INDEX(PROJEKTPARAMETER!$B$12:$H$12,1,MATCH(ProjektDetails[[#Headers],[KUNDENBETREUER]],Parameter[#Headers],0))*ProjektDetails[[#This Row],[GESCHÄTZTE ARBEIT]] -> 7,200 € | M5: =INDEX(Parameter[],MATCH(ProjektDetails[[#This Row],[PROJEKTTYP]],Parameter[PROJEKTTYP],0),MATCH(ProjektDetails[[#Headers],[PROJEKTMANAGER]],Parameter[#Headers],0))*INDEX(PROJEKTPARAMETER!$B$12:$H$12,1,MATCH(ProjektDetails[[#Headers],[PROJEKTMANAGER]],Parameter[#Headers],0))*ProjektDetails[[#This Row],[GESCHÄTZTE ARBEIT]] -> 2,400 € | N5: =INDEX(Parameter[],MATCH(ProjektDetails[[#This Row],[PROJEKTTYP]],Parameter[PROJEKTTYP],0),MATCH(ProjektDetails[[#Headers],[STRATEGIEMANAGER]],Parameter[#Headers],0))*INDEX(PROJEKTPARAMETER!$B$12:$H$12,1,MATCH(ProjektDetails[[#Headers],[STRATEGIEMANAGER]],Parameter[#Headers],0))*ProjektDetails[[#This Row],[GESCHÄTZTE ARBEIT]] -> 18,000 € | O5: =INDEX(Parameter[],MATCH(ProjektDetails[[#This Row],[PROJEKTTYP]],Parameter[PROJEKTTYP],0),MATCH(ProjektDetails[[#Headers],[DESIGNSPEZIALIST]],Parameter[#Headers],0))*INDEX(PROJEKTPARAMETER!$B$12:$H$12,1,MATCH(ProjektDetails[[#Headers],[DESIGNSPEZIALIST]],Parameter[#Headers],0))*ProjektDetails[[#This Row],[GESCHÄTZTE ARBEIT]] -> 0 € | P5: =INDEX(Parameter[],MATCH(ProjektDetails[[#This Row],[PROJEKTTYP]],Parameter[PROJEKTTYP],0),MATCH(ProjektDetails[[#Headers],[VERANSTALTUNGSPERSONAL]],Parameter[#Headers],0))*INDEX(PROJEKTPARAMETER!$B$12:$H$12,1,MATCH(ProjektDetails[[#Headers],[VERANSTALTUNGSPERSONAL]],Parameter[#Headers],0))*ProjektDetails[[#This Row],[GESCHÄTZTE ARBEIT]] -> 0 € | Q5: =INDEX(Parameter[],MATCH(ProjektDetails[[#This Row],[PROJEKTTYP]],Parameter[PROJEKTTYP],0),MATCH(ProjektDetails[[#Headers],[VERWALTUNGSPERSONAL]],Parameter[#Headers],0))*INDEX(PROJEKTPARAMETER!$B$12:$H$12,1,MATCH(ProjektDetails[[#Headers],[VERWALTUNGSPERSONAL]],Parameter[#Headers],0))*ProjektDetails[[#This Row],[GESCHÄTZTE ARBEIT]] -> 1,200 € | R5: =INDEX(Parameter[],MATCH(ProjektDetails[[#This Row],[PROJEKTTYP]],Parameter[PROJEKTTYP],0),MATCH(ProjektDetails[[#Headers],[KUNDENBETREUER]],Parameter[#Headers],0))*INDEX(PROJEKTPARAMETER!$B$12:$H$12,1,MATCH(ProjektDetails[[#Headers],[KUNDENBETREUER]],Parameter[#Headers],0))*ProjektDetails[[#This Row],[IST-ARBEIT]] -> 7,920 € | S5: =INDEX(Parameter[],MATCH(ProjektDetails[[#This Row],[PROJEKTTYP]],Parameter[PROJEKTTYP],0),MATCH(ProjektDetails[[#Headers],[PROJEKTMANAGER]],Parameter[#Headers],0))*INDEX(PROJEKTPARAMETER!$B$12:$H$12,1,MATCH(ProjektDetails[[#Headers],[PROJEKTMANAGER]],Parameter[#Headers],0))*ProjektDetails[[#This Row],[IST-ARBEIT]] -> 2,640 € | T5: =INDEX(Parameter[],MATCH(ProjektDetails[[#This Row],[PROJEKTTYP]],Parameter[PROJEKTTYP],0),MATCH(ProjektDetails[[#Headers],[STRATEGIEMANAGER]],Parameter[#Headers],0))*INDEX(PROJEKTPARAMETER!$B$12:$H$12,1,MATCH(ProjektDetails[[#Headers],[STRATEGIEMANAGER]],Parameter[#Headers],0))*ProjektDetails[[#This Row],[IST-ARBEIT]] -> 19,800 € | U5: =INDEX(Parameter[],MATCH(ProjektDetails[[#This Row],[PROJEKTTYP]],Parameter[PROJEKTTYP],0),MATCH(ProjektDetails[[#Headers],[DESIGNSPEZIALIST]],Parameter[#Headers],0))*INDEX(PROJEKTPARAMETER!$B$12:$H$12,1,MATCH(ProjektDetails[[#Headers],[DESIGNSPEZIALIST]],Parameter[#Headers],0))*ProjektDetails[[#This Row],[IST-ARBEIT]] -> 0 € | V5: =INDEX(Parameter[],MATCH(ProjektDetails[[#This Row],[PROJEKTTYP]],Parameter[PROJEKTTYP],0),MATCH(ProjektDetails[[#Headers],[VERANSTALTUNGSPERSONAL]],Parameter[#Headers],0))*INDEX(PROJEKTPARAMETER!$B$12:$H$12,1,MATCH(ProjektDetails[[#Headers],[VERANSTALTUNGSPERSONAL]],Parameter[#Headers],0))*ProjektDetails[[#This Row],[IST-ARBEIT]] -> 0 € | W5: =INDEX(Parameter[],MATCH(ProjektDetails[[#This Row],[PROJEKTTYP]],Parameter[PROJEKTTYP],0),MATCH(ProjektDetails[[#Headers],[VERWALTUNGSPERSONAL]],Parameter[#Headers],0))*INDEX(PROJEKTPARAMETER!$B$12:$H$12,1,MATCH(ProjektDetails[[#Headers],[VERWALTUNGSPERSONAL]],Parameter[#Headers],0))*ProjektDetails[[#This Row],[IST-ARBEIT]] -> 1,320 €
B6: Projekt 2 | C6: Veranstaltungsplanung | D6: =DATE(YEAR(TODAY())+1,6,25) -> 2020-06-25 | E6: =DATE(YEAR(TODAY())+1,7,27) -> 2020-07-27 | F6: =DATE(YEAR(TODAY()),7,15) -> 2019-07-15 | G6: =DATE(YEAR(TODAY())+1,8,25) -> 2020-08-25 | H6: 400 | I6: 390 | J6: =DAYS360(ProjektDetails[[#This Row],[VORAUSSICHTLICHER START]],ProjektDetails[[#This Row],[VORAUSSICHTLICHES ENDE]],FALSE) -> 32 | K6: =DAYS360(ProjektDetails[[#This Row],[TATSÄCHLICHER START]],ProjektDetails[[#This Row],[TATSÄCHLICHES ENDE]],FALSE) -> 400 | L6: =INDEX(Parameter[],MATCH(ProjektDetails[[#This Row],[PROJEKTTYP]],Parameter[PROJEKTTYP],0),MATCH(ProjektDetails[[#Headers],[KUNDENBETREUER]],Parameter[#Headers],0))*INDEX(PROJEKTPARAMETER!$B$12:$H$12,1,MATCH(ProjektDetails[[#Headers],[KUNDENBETREUER]],Parameter[#Headers],0))*ProjektDetails[[#This Row],[GESCHÄTZTE ARBEIT]] -> 14,400 € | M6: =INDEX(Parameter[],MATCH(ProjektDetails[[#This Row],[PROJEKTTYP]],Parameter[PROJEKTTYP],0),MATCH(ProjektDetails[[#Headers],[PROJEKTMANAGER]],Parameter[#Headers],0))*INDEX(PROJEKTPARAMETER!$B$12:$H$12,1,MATCH(ProjektDetails[[#Headers],[PROJEKTMANAGER]],Parameter[#Headers],0))*ProjektDetails[[#This Row],[GESCHÄTZTE ARBEIT]] -> 24,000 € | N6: =INDEX(Parameter[],MATCH(ProjektDetails[[#This Row],[PROJEKTTYP]],Parameter[PROJEKTTYP],0),MATCH(ProjektDetails[[#Headers],[STRATEGIEMANAGER]],Parameter[#Headers],0))*INDEX(PROJEKTPARAMETER!$B$12:$H$12,1,MATCH(ProjektDetails[[#Headers],[STRATEGIEMANAGER]],Parameter[#Headers],0))*ProjektDetails[[#This Row],[GESCHÄTZTE ARBEIT]] -> 6,000 € | O6: =INDEX(Parameter[],MATCH(ProjektDetails[[#This Row],[PROJEKTTYP]],Parameter[PROJEKTTYP],0),MATCH(ProjektDetails[[#Headers],[DESIGNSPEZIALIST]],Parameter[#Headers],0))*INDEX(PROJEKTPARAMETER!$B$12:$H$12,1,MATCH(ProjektDetails[[#Headers],[DESIGNSPEZIALIST]],Parameter[#Headers],0))*ProjektDetails[[#This Row],[GESCHÄTZTE ARBEIT]] -> 4,000 € | P6: =INDEX(Parameter[],MATCH(ProjektDetails[[#This Row],[PROJEKTTYP]],Parameter[PROJEKTTYP],0),MATCH(ProjektDetails[[#Headers],[VERANSTALTUNGSPERSONAL]],Parameter[#Headers],0))*INDEX(PROJEKTPARAMETER!$B$12:$H$12,1,MATCH(ProjektDetails[[#Headers],[VERANSTALTUNGSPERSONAL]],Parameter[#Headers],0))*ProjektDetails[[#This Row],[GESCHÄTZTE ARBEIT]] -> 0 € | Q6: =INDEX(Parameter[],MATCH(ProjektDetails[[#This Row],[PROJEKTTYP]],Parameter[PROJEKTTYP],0),MATCH(ProjektDetails[[#Headers],[VERWALTUNGSPERSONAL]],Parameter[#Headers],0))*INDEX(PROJEKTPARAMETER!$B$12:$H$12,1,MATCH(ProjektDetails[[#Headers],[VERWALTUNGSPERSONAL]],Parameter[#Headers],0))*ProjektDetails[[#This Row],[GESCHÄTZTE ARBEIT]] -> 2,400 € | R6: =INDEX(Parameter[],MATCH(ProjektDetails[[#This Row],[PROJEKTTYP]],Parameter[PROJEKTTYP],0),MATCH(ProjektDetails[[#Headers],[KUNDENBETREUER]],Parameter[#Headers],0))*INDEX(PROJEKTPARAMETER!$B$12:$H$12,1,MATCH(ProjektDetails[[#Headers],[KUNDENBETREUER]],Parameter[#Headers],0))*ProjektDetails[[#This Row],[IST-ARBEIT]] -> 14,040 € | S6: =INDEX(Parameter[],MATCH(ProjektDetails[[#This Row],[PROJEKTTYP]],Parameter[PROJEKTTYP],0),MATCH(ProjektDetails[[#Headers],[PROJEKTMANAGER]],Parameter[#Headers],0))*INDEX(PROJEKTPARAMETER!$B$12:$H$12,1,MATCH(ProjektDetails[[#Headers],[PROJEKTMANAGER]],Parameter[#Headers],0))*ProjektDetails[[#This Row],[IST-ARBEIT]] -> 23,400 € | T6: =INDEX(Parameter[],MATCH(ProjektDetails[[#This Row],[PROJEKTTYP]],Parameter[PROJEKTTYP],0),MATCH(ProjektDetails[[#Headers],[STRATEGIEMANAGER]],Parameter[#Headers],0))*INDEX(PROJEKTPARAMETER!$B$12:$H$12,1,MATCH(ProjektDetails[[#Headers],[STRATEGIEMANAGER]],Parameter[#Headers],0))*ProjektDetails[[#This Row],[IST-ARBEIT]] -> 5,850 € | U6: =INDEX(Parameter[],MATCH(ProjektDetails[[#This Row],[PROJEKTTYP]],Parameter[PROJEKTTYP],0),MATCH(ProjektDetails[[#Headers],[DESIGNSPEZIALIST]],Parameter[#Headers],0))*INDEX(PROJEKTPARAMETER!$B$12:$H$12,1,MATCH(ProjektDetails[[#Headers],[DESIGNSPEZIALIST]],Parameter[#Headers],0))*ProjektDetails[[#This Row],[IST-ARBEIT]] -> 3,900 € | V6: =INDEX(Parameter[],MATCH(ProjektDetails[[#This Row],[PROJEKTTYP]],Parameter[PROJEKTTYP],0),MATCH(ProjektDetails[[#Headers],[VERANSTALTUNGSPERSONAL]],Parameter[#Headers],0))*INDEX(PROJEKTPARAMETER!$B$12:$H$12,1,MATCH(ProjektDetails[[#Headers],[VERANSTALTUNGSPERSONAL]],Parameter[#Headers],0))*ProjektDetails[[#This Row],[IST-ARBEIT]] -> 0 € | W6: =INDEX(Parameter[],MATCH(ProjektDetails[[#This Row],[PROJEKTTYP]],Parameter[PROJEKTTYP],0),MATCH(ProjektDetails[[#Headers],[VERWALTUNGSPERSONAL]],Parameter[#Headers],0))*INDEX(PROJEKTPARAMETER!$B$12:$H$12,1,MATCH(ProjektDetails[[#Headers],[VERWALTUNGSPERSONAL]],Parameter[#Headers],0))*ProjektDetails[[#This Row],[IST-ARBEIT]] -> 2,340 €
B7: Projekt 3 | C7: Veranstaltungsdesign | D7: =DATE(YEAR(TODAY())+2,7,12) -> 2021-07-12 | E7: =DATE(YEAR(TODAY())+2,9,19) -> 2021-09-19 | F7: =DATE(YEAR(TODAY())+6,8,7) -> 2025-08-07 | G7: =DATE(YEAR(TODAY())+6,10,10) -> 2025-10-10 | H7: 500 | I7: 500 | J7: =DAYS360(ProjektDetails[[#This Row],[VORAUSSICHTLICHER START]],ProjektDetails[[#This Row],[VORAUSSICHTLICHES ENDE]],FALSE) -> 67 | K7: =DAYS360(ProjektDetails[[#This Row],[TATSÄCHLICHER START]],ProjektDetails[[#This Row],[TATSÄCHLICHES ENDE]],FALSE) -> 63 | L7: =INDEX(Parameter[],MATCH(ProjektDetails[[#This Row],[PROJEKTTYP]],Parameter[PROJEKTTYP],0),MATCH(ProjektDetails[[#Headers],[KUNDENBETREUER]],Parameter[#Headers],0))*INDEX(PROJEKTPARAMETER!$B$12:$H$12,1,MATCH(ProjektDetails[[#Headers],[KUNDENBETREUER]],Parameter[#Headers],0))*ProjektDetails[[#This Row],[GESCHÄTZTE ARBEIT]] -> 18,000 € | M7: =INDEX(Parameter[],MATCH(ProjektDetails[[#This Row],[PROJEKTTYP]],Parameter[PROJEKTTYP],0),MATCH(ProjektDetails[[#Headers],[PROJEKTMANAGER]],Parameter[#Headers],0))*INDEX(PROJEKTPARAMETER!$B$12:$H$12,1,MATCH(ProjektDetails[[#Headers],[PROJEKTMANAGER]],Parameter[#Headers],0))*ProjektDetails[[#This Row],[GESCHÄTZTE ARBEIT]] -> 12,000 € | N7: =INDEX(Parameter[],MATCH(ProjektDetails[[#This Row],[PROJEKTTYP]],Parameter[PROJEKTTYP],0),MATCH(ProjektDetails[[#Headers],[STRATEGIEMANAGER]],Parameter[#Headers],0))*INDEX(PROJEKTPARAMETER!$B$12:$H$12,1,MATCH(ProjektDetails[[#Headers],[STRATEGIEMANAGER]],Parameter[#Headers],0))*ProjektDetails[[#This Row],[GESCHÄTZTE ARBEIT]] -> 0 € | O7: =INDEX(Parameter[],MATCH(ProjektDetails[[#This Row],[PROJEKTTYP]],Parameter[PROJEKTTYP],0),MATCH(ProjektDetails[[#Headers],[DESIGNSPEZIALIST]],Parameter[#Headers],0))*INDEX(PROJEKTPARAMETER!$B$12:$H$12,1,MATCH(ProjektDetails[[#Headers],[DESIGNSPEZIALIST]],Parameter[#Headers],0))*ProjektDetails[[#This Row],[GESCHÄTZTE ARBEIT]] -> 25,000 € | P7: =INDEX(Parameter[],MATCH(ProjektDetails[[#This Row],[PROJEKTTYP]],Parameter[PROJEKTTYP],0),MATCH(ProjektDetails[[#Headers],[VERANSTALTUNGSPERSONAL]],Parameter[#Headers],0))*INDEX(PROJEKTPARAMETER!$B$12:$H$12,1,MATCH(ProjektDetails[[#Headers],[VERANSTALTUNGSPERSONAL]],Parameter[#Headers],0))*ProjektDetails[[#This Row],[GESCHÄTZTE ARBEIT]] -> 0 € | Q7: =INDEX(Parameter[],MATCH(ProjektDetails[[#This Row],[PROJEKTTYP]],Parameter[PROJEKTTYP],0),MATCH(ProjektDetails[[#Headers],[VERWALTUNGSPERSONAL]],Parameter[#Headers],0))*INDEX(PROJEKTPARAMETER!$B$12:$H$12,1,MATCH(ProjektDetails[[#Headers],[VERWALTUNGSPERSONAL]],Parameter[#Headers],0))*ProjektDetails[[#This Row],[GESCHÄTZTE ARBEIT]] -> 3,000 € | R7: =INDEX(Parameter[],MATCH(ProjektDetails[[#This Row],[PROJEKTTYP]],Parameter[PROJEKTTYP],0),MATCH(ProjektDetails[[#Headers],[KUNDENBETREUER]],Parameter[#Headers],0))*INDEX(PROJEKTPARAMETER!$B$12:$H$12,1,MATCH(ProjektDetails[[#Headers],[KUNDENBETREUER]],Parameter[#Headers],0))*ProjektDetails[[#This Row],[IST-ARBEIT]] -> 18,000 € | S7: =INDEX(Parameter[],MATCH(ProjektDetails[[#This Row],[PROJEKTTYP]],Parameter[PROJEKTTYP],0),MATCH(ProjektDetails[[#Headers],[PROJEKTMANAGER]],Parameter[#Headers],0))*INDEX(PROJEKTPARAMETER!$B$12:$H$12,1,MATCH(ProjektDetails[[#Headers],[PROJEKTMANAGER]],Parameter[#Headers],0))*ProjektDetails[[#This Row],[IST-ARBEIT]] -> 12,000 € | T7: =INDEX(Parameter[],MATCH(ProjektDetails[[#This Row],[PROJEKTTYP]],Parameter[PROJEKTTYP],0),MATCH(ProjektDetails[[#Headers],[STRATEGIEMANAGER]],Parameter[#Headers],0))*INDEX(PROJEKTPARAMETER!$B$12:$H$12,1,MATCH(ProjektDetails[[#Headers],[STRATEGIEMANAGER]],Parameter[#Headers],0))*ProjektDetails[[#This Row],[IST-ARBEIT]] -> 0 € | U7: =INDEX(Parameter[],MATCH(ProjektDetails[[#This Row],[PROJEKTTYP]],Parameter[PROJEKTTYP],0),MATCH(ProjektDetails[[#Headers],[DESIGNSPEZIALIST]],Parameter[#Headers],0))*INDEX(PROJEKTPARAMETER!$B$12:$H$12,1,MATCH(ProjektDetails[[#Headers],[DESIGNSPEZIALIST]],Parameter[#Headers],0))*ProjektDetails[[#This Row],[IST-ARBEIT]] -> 25,000 € | V7: =INDEX(Parameter[],MATCH(ProjektDetails[[#This Row],[PROJEKTTYP]],Parameter[PROJEKTTYP],0),MATCH(ProjektDetails[[#Headers],[VERANSTALTUNGSPERSONAL]],Parameter[#Headers],0))*INDEX(PROJEKTPARAMETER!$B$12:$H$12,1,MATCH(ProjektDetails[[#Headers],[VERANSTALTUNGSPERSONAL]],Parameter[#Headers],0))*ProjektDetails[[#This Row],[IST-ARBEIT]] -> 0 € | W7: =INDEX(Parameter[],MATCH(ProjektDetails[[#This Row],[PROJEKTTYP]],Parameter[PROJEKTTYP],0),MATCH(ProjektDetails[[#Headers],[VERWALTUNGSPERSONAL]],Parameter[#Headers],0))*INDEX(PROJEKTPARAMETER!$B$12:$H$12,1,MATCH(ProjektDetails[[#Headers],[VERWALTUNGSPERSONAL]],Parameter[#Headers],0))*ProjektDetails[[#This Row],[IST-ARBEIT]] -> 3,000 €
B8: Projekt 4 | C8: Veranstaltungslogistik | D8: =DATE(YEAR(TODAY())+3,7,30) -> 2022-07-30 | E8: =DATE(YEAR(TODAY())+3,9,28) -> 2022-09-28 | F8: =DATE(YEAR(TODAY())+3,9,14) -> 2022-09-14 | G8: =DATE(YEAR(TODAY())+3,11,13) -> 2022-11-13 | H8: 150 | I8: 145 | J8: =DAYS360(ProjektDetails[[#This Row],[VORAUSSICHTLICHER START]],ProjektDetails[[#This Row],[VORAUSSICHTLICHES ENDE]],FALSE) -> 58 | K8: =DAYS360(ProjektDetails[[#This Row],[TATSÄCHLICHER START]],ProjektDetails[[#This Row],[TATSÄCHLICHES ENDE]],FALSE) -> 59 | L8: =INDEX(Parameter[],MATCH(ProjektDetails[[#This Row],[PROJEKTTYP]],Parameter[PROJEKTTYP],0),MATCH(ProjektDetails[[#Headers],[KUNDENBETREUER]],Parameter[#Headers],0))*INDEX(PROJEKTPARAMETER!$B$12:$H$12,1,MATCH(ProjektDetails[[#Headers],[KUNDENBETREUER]],Parameter[#Headers],0))*ProjektDetails[[#This Row],[GESCHÄTZTE ARBEIT]] -> 5,400 € | M8: =INDEX(Parameter[],MATCH(ProjektDetails[[#This Row],[PROJEKTTYP]],Parameter[PROJEKTTYP],0),MATCH(ProjektDetails[[#Headers],[PROJEKTMANAGER]],Parameter[#Headers],0))*INDEX(PROJEKTPARAMETER!$B$12:$H$12,1,MATCH(ProjektDetails[[#Headers],[PROJEKTMANAGER]],Parameter[#Headers],0))*ProjektDetails[[#This Row],[GESCHÄTZTE ARBEIT]] -> 10,800 € | N8: =INDEX(Parameter[],MATCH(ProjektDetails[[#This Row],[PROJEKTTYP]],Parameter[PROJEKTTYP],0),MATCH(ProjektDetails[[#Headers],[STRATEGIEMANAGER]],Parameter[#Headers],0))*INDEX(PROJEKTPARAMETER!$B$12:$H$12,1,MATCH(ProjektDetails[[#Headers],[STRATEGIEMANAGER]],Parameter[#Headers],0))*ProjektDetails[[#This Row],[GESCHÄTZTE ARBEIT]] -> 0 € | O8: =INDEX(Parameter[],MATCH(ProjektDetails[[#This Row],[PROJEKTTYP]],Parameter[PROJEKTTYP],0),MATCH(ProjektDetails[[#Headers],[DESIGNSPEZIALIST]],Parameter[#Headers],0))*INDEX(PROJEKTPARAMETER!$B$12:$H$12,1,MATCH(ProjektDetails[[#Headers],[DESIGNSPEZIALIST]],Parameter[#Headers],0))*ProjektDetails[[#This Row],[GESCHÄTZTE ARBEIT]] -> 0 € | P8: =INDEX(Parameter[],MATCH(ProjektDetails[[#This Row],[PROJEKTTYP]],Parameter[PROJEKTTYP],0),MATCH(ProjektDetails[[#Headers],[VERANSTALTUNGSPERSONAL]],Parameter[#Headers],0))*INDEX(PROJEKTPARAMETER!$B$12:$H$12,1,MATCH(ProjektDetails[[#Headers],[VERANSTALTUNGSPERSONAL]],Parameter[#Headers],0))*ProjektDetails[[#This Row],[GESCHÄTZTE ARBEIT]] -> 1,200 € | Q8: =INDEX(Parameter[],MATCH(ProjektDetails[[#This Row],[PROJEKTTYP]],Parameter[PROJEKTTYP],0),MATCH(ProjektDetails[[#Headers],[VERWALTUNGSPERSONAL]],Parameter[#Headers],0))*INDEX(PROJEKTPARAMETER!$B$12:$H$12,1,MATCH(ProjektDetails[[#Headers],[VERWALTUNGSPERSONAL]],Parameter[#Headers],0))*ProjektDetails[[#This Row],[GESCHÄTZTE ARBEIT]] -> 900 € | R8: =INDEX(Parameter[],MATCH(ProjektDetails[[#This Row],[PROJEKTTYP]],Parameter[PROJEKTTYP],0),MATCH(ProjektDetails[[#Headers],[KUNDENBETREUER]],Parameter[#Headers],0))*INDEX(PROJEKTPARAMETER!$B$12:$H$12,1,MATCH(ProjektDetails[[#Headers],[KUNDENBETREUER]],Parameter[#Headers],0))*ProjektDetails[[#This Row],[IST-ARBEIT]] -> 5,220 € | S8: =INDEX(Parameter[],MATCH(ProjektDetails[[#This Row],[PROJEKTTYP]],Parameter[PROJEKTTYP],0),MATCH(ProjektDetails[[#Headers],[PROJEKTMANAGER]],Parameter[#Headers],0))*INDEX(PROJEKTPARAMETER!$B$12:$H$12,1,MATCH(ProjektDetails[[#Headers],[PROJEKTMANAGER]],Parameter[#Headers],0))*ProjektDetails[[#This Row],[IST-ARBEIT]] -> 10,440 € | T8: =INDEX(Parameter[],MATCH(ProjektDetails[[#This Row],[PROJEKTTYP]],Parameter[PROJEKTTYP],0),MATCH(ProjektDetails[[#Headers],[STRATEGIEMANAGER]],Parameter[#Headers],0))*INDEX(PROJEKTPARAMETER!$B$12:$H$12,1,MATCH(ProjektDetails[[#Headers],[STRATEGIEMANAGER]],Parameter[#Headers],0))*ProjektDetails[[#This Row],[IST-ARBEIT]] -> 0 € | U8: =INDEX(Parameter[],MATCH(ProjektDetails[[#This Row],[PROJEKTTYP]],Parameter[PROJEKTTYP],0),MATCH(ProjektDetails[[#Headers],[DESIGNSPEZIALIST]],Parameter[#Headers],0))*INDEX(PROJEKTPARAMETER!$B$12:$H$12,1,MATCH(ProjektDetails[[#Headers],[DESIGNSPEZIALIST]],Parameter[#Headers],0))*ProjektDetails[[#This Row],[IST-ARBEIT]] -> 0 € | V8: =INDEX(Parameter[],MATCH(ProjektDetails[[#This Row],[PROJEKTTYP]],Parameter[PROJEKTTYP],0),MATCH(ProjektDetails[[#Headers],[VERANSTALTUNGSPERSONAL]],Parameter[#Headers],0))*INDEX(PROJEKTPARAMETER!$B$12:$H$12,1,MATCH(ProjektDetails[[#Headers],[VERANSTALTUNGSPERSONAL]],Parameter[#Headers],0))*ProjektDetails[[#This Row],[IST-ARBEIT]] -> 1,160 € | W8: =INDEX(Parameter[],MATCH(ProjektDetails[[#This Row],[PROJEKTTYP]],Parameter[PROJEKTTYP],0),MATCH(ProjektDetails[[#Headers],[VERWALTUNGSPERSONAL]],Parameter[#Headers],0))*INDEX(PROJEKTPARAMETER!$B$12:$H$12,1,MATCH(ProjektDetails[[#Headers],[VERWALTUNGSPERSONAL]],Parameter[#Headers],0))*ProjektDetails[[#This Row],[IST-ARBEIT]] -> 870 €
B9: Projekt 5 | C9: Veranstaltungspersonal | D9: =DATE(YEAR(TODAY())+4,8,11) -> 2023-08-11 | E9: =DATE(YEAR(TODAY())+4,8,21) -> 2023-08-21 | F9: =DATE(YEAR(TODAY())+4,9,14) -> 2023-09-14 | G9: =DATE(YEAR(TODAY())+4,9,25) -> 2023-09-25 | H9: 250 | I9: 255 | J9: =DAYS360(ProjektDetails[[#This Row],[VORAUSSICHTLICHER START]],ProjektDetails[[#This Row],[VORAUSSICHTLICHES ENDE]],FALSE) -> 10 | K9: =DAYS360(ProjektDetails[[#This Row],[TATSÄCHLICHER START]],ProjektDetails[[#This Row],[TATSÄCHLICHES ENDE]],FALSE) -> 11 | L9: =INDEX(Parameter[],MATCH(ProjektDetails[[#This Row],[PROJEKTTYP]],Parameter[PROJEKTTYP],0),MATCH(ProjektDetails[[#Headers],[KUNDENBETREUER]],Parameter[#Headers],0))*INDEX(PROJEKTPARAMETER!$B$12:$H$12,1,MATCH(ProjektDetails[[#Headers],[KUNDENBETREUER]],Parameter[#Headers],0))*ProjektDetails[[#This Row],[GESCHÄTZTE ARBEIT]] -> 9,000 € | M9: =INDEX(Parameter[],MATCH(ProjektDetails[[#This Row],[PROJEKTTYP]],Parameter[PROJEKTTYP],0),MATCH(ProjektDetails[[#Headers],[PROJEKTMANAGER]],Parameter[#Headers],0))*INDEX(PROJEKTPARAMETER!$B$12:$H$12,1,MATCH(ProjektDetails[[#Headers],[PROJEKTMANAGER]],Parameter[#Headers],0))*ProjektDetails[[#This Row],[GESCHÄTZTE ARBEIT]] -> 3,000 € | N9: =INDEX(Parameter[],MATCH(ProjektDetails[[#This Row],[PROJEKTTYP]],Parameter[PROJEKTTYP],0),MATCH(ProjektDetails[[#Headers],[STRATEGIEMANAGER]],Parameter[#Headers],0))*INDEX(PROJEKTPARAMETER!$B$12:$H$12,1,MATCH(ProjektDetails[[#Headers],[STRATEGIEMANAGER]],Parameter[#Headers],0))*ProjektDetails[[#This Row],[GESCHÄTZTE ARBEIT]] -> 0 € | O9: =INDEX(Parameter[],MATCH(ProjektDetails[[#This Row],[PROJEKTTYP]],Parameter[PROJEKTTYP],0),MATCH(ProjektDetails[[#Headers],[DESIGNSPEZIALIST]],Parameter[#Headers],0))*INDEX(PROJEKTPARAMETER!$B$12:$H$12,1,MATCH(ProjektDetails[[#Headers],[DESIGNSPEZIALIST]],Parameter[#Headers],0))*ProjektDetails[[#This Row],[GESCHÄTZTE ARBEIT]] -> 0 € | P9: =INDEX(Parameter[],MATCH(ProjektDetails[[#This Row],[PROJEKTTYP]],Parameter[PROJEKTTYP],0),MATCH(ProjektDetails[[#Headers],[VERANSTALTUNGSPERSONAL]],Parameter[#Headers],0))*INDEX(PROJEKTPARAMETER!$B$12:$H$12,1,MATCH(ProjektDetails[[#Headers],[VERANSTALTUNGSPERSONAL]],Parameter[#Headers],0))*ProjektDetails[[#This Row],[GESCHÄTZTE ARBEIT]] -> 12,000 € | Q9: =INDEX(Parameter[],MATCH(ProjektDetails[[#This Row],[PROJEKTTYP]],Parameter[PROJEKTTYP],0),MATCH(ProjektDetails[[#Headers],[VERWALTUNGSPERSONAL]],Parameter[#Headers],0))*INDEX(PROJEKTPARAMETER!$B$12:$H$12,1,MATCH(ProjektDetails[[#Headers],[VERWALTUNGSPERSONAL]],Parameter[#Headers],0))*ProjektDetails[[#This Row],[GESCHÄTZTE ARBEIT]] -> 1,500 € | R9: =INDEX(Parameter[],MATCH(ProjektDetails[[#This Row],[PROJEKTTYP]],Parameter[PROJEKTTYP],0),MATCH(ProjektDetails[[#Headers],[KUNDENBETREUER]],Parameter[#Headers],0))*INDEX(PROJEKTPARAMETER!$B$12:$H$12,1,MATCH(ProjektDetails[[#Headers],[KUNDENBETREUER]],Parameter[#Headers],0))*ProjektDetails[[#This Row],[IST-ARBEIT]] -> 9,180 € | S9: =INDEX(Parameter[],MATCH(ProjektDetails[[#This Row],[PROJEKTTYP]],Parameter[PROJEKTTYP],0),MATCH(ProjektDetails[[#Headers],[PROJEKTMANAGER]],Parameter[#Headers],0))*INDEX(PROJEKTPARAMETER!$B$12:$H$12,1,MATCH(ProjektDetails[[#Headers],[PROJEKTMANAGER]],Parameter[#Headers],0))*ProjektDetails[[#This Row],[IST-ARBEIT]] -> 3,060 € | T9: =INDEX(Parameter[],MATCH(ProjektDetails[[#This Row],[PROJEKTTYP]],Parameter[PROJEKTTYP],0),MATCH(ProjektDetails[[#Headers],[STRATEGIEMANAGER]],Parameter[#Headers],0))*INDEX(PROJEKTPARAMETER!$B$12:$H$12,1,MATCH(ProjektDetails[[#Headers],[STRATEGIEMANAGER]],Parameter[#Headers],0))*ProjektDetails[[#This Row],[IST-ARBEIT]] -> 0 € | U9: =INDEX(Parameter[],MATCH(ProjektDetails[[#This Row],[PROJEKTTYP]],Parameter[PROJEKTTYP],0),MATCH(ProjektDetails[[#Headers],[DESIGNSPEZIALIST]],Parameter[#Headers],0))*INDEX(PROJEKTPARAMETER!$B$12:$H$12,1,MATCH(ProjektDetails[[#Headers],[DESIGNSPEZIALIST]],Parameter[#Headers],0))*ProjektDetails[[#This Row],[IST-ARBEIT]] -> 0 € | V9: =INDEX(Parameter[],MATCH(ProjektDetails[[#This Row],[PROJEKTTYP]],Parameter[PROJEKTTYP],0),MATCH(ProjektDetails[[#Headers],[VERANSTALTUNGSPERSONAL]],Parameter[#Headers],0))*INDEX(PROJEKTPARAMETER!$B$12:$H$12,1,MATCH(ProjektDetails[[#Headers],[VERANSTALTUNGSPERSONAL]],Parameter[#Headers],0))*ProjektDetails[[#This Row],[IST-ARBEIT]] -> 12,240 € | W9: =INDEX(Parameter[],MATCH(ProjektDetails[[#This Row],[PROJEKTTYP]],Parameter[PROJEKTTYP],0),MATCH(ProjektDetails[[#Headers],[VERWALTUNGSPERSONAL]],Parameter[#Headers],0))*INDEX(PROJEKTPARAMETER!$B$12:$H$12,1,MATCH(ProjektDetails[[#Headers],[VERWALTUNGSPERSONAL]],Parameter[#Headers],0))*ProjektDetails[[#This Row],[IST-ARBEIT]] -> 1,530 €
B10: ERGEBNIS | H10: =SUBTOTAL(109,ProjektDetails[GESCHÄTZTE ARBEIT]) -> 1500 | I10: =SUBTOTAL(109,ProjektDetails[IST-ARBEIT]) -> 1510 | J10: =SUBTOTAL(109,ProjektDetails[GESCHÄTZTE DAUER]) -> 225 | K10: =SUBTOTAL(109,ProjektDetails[TATSÄCHLICHE DAUER]) -> 597

Sheet PROJEKTSUMMEN
A1: Erhalten Sie Projektsummen in diesem Arbeitsblatt. Der Firmenname in der Zelle rechts wird automatisch aktualisiert. Hilfreiche Anweisungen stehen in Zellen in dieser Spalte. Drücken Sie die NACH-UNTEN-TASTE, um anzufangen. | B1: =PROJEKTPARAMETER!B1 -> Firmenname
A2: Der Titel dieses Arbeitsblatts steht in der Zelle rechts. | B2: Projekt-Tracker "Veranstaltungsmanagement"
A3: Die Vertraulichkeitsnachricht steht in der Zelle rechts. | B3: =PROJEKTPARAMETER!B3 -> Vertraulicher Firmenname
A4: Die PivotTable, die in der Zelle rechts beginnt, wird automatisch aktualisiert. INFO Wenn Sie die PivotTable rechts aktualisieren möchten, wählen Sie sie aus (eine beliebige Zelle darin). Wählen Sie auf der Registerkarte des Menübands PIVOTTABLE-TOOLS | ANALYSIEREN die Option "Aktualisieren" aus, oder drücken Sie in einer beliebigen Zelle der PivotTable UMSCHALT+F10, und wählen Sie "Aktualisieren" aus. | B4: PROJEKTNAME | C4: KUNDENBETREUER SCHÄTZUNG | D4: PROJEKTMANAGER SCHÄTZUNG | E4: STRATEGIEMANAGER SCHÄTZUNG | F4: DESIGNSPEZIALIST SCHÄTZUNG | G4: VERANSTALTUNGSPERSONAL SCHÄTZUNG | H4: VERWALTUNGSPERSONAL SCHÄTZUNG | I4: KUNDENBETREUER TATSÄCHLICH | J4: PROJEKTMANAGER TATSÄCHLICH | K4: STRATEGIEMANAGER TATSÄCHLICH | L4: DESIGNSPEZIALIST TATSÄCHLICH | M4: VERANSTALTUNGSPERSONAL TATSÄCHLICH | N4: VERWALTUNGSPERSONAL TATSÄCHLICH
B5: Projekt 1 | C5: 7,200.00 € | D5: 2,400.00 € | E5: 18,000.00 € | F5: 0.00 € | G5: 0.00 € | H5: 1,200.00 € | I5: 7,920.00 € | J5: 2,640.00 € | K5: 19,800.00 € | L5: 0.00 € | M5: 0.00 € | N5: 1,320.00 €
B6: Projekt 2 | C6: 14,400.00 € | D6: 24,000.00 € | E6: 6,000.00 € | F6: 4,000.00 € | G6: 0.00 € | H6: 2,400.00 € | I6: 14,040.00 € | J6: 23,400.00 € | K6: 5,850.00 € | L6: 3,900.00 € | M6: 0.00 € | N6: 2,340.00 €
B7: Projekt 3 | C7: 18,000.00 € | D7: 12,000.00 € | E7: 0.00 € | F7: 25,000.00 € | G7: 0.00 € | H7: 3,000.00 € | I7: 18,000.00 € | J7: 12,000.00 € | K7: 0.00 € | L7: 25,000.00 € | M7: 0.00 € | N7: 3,000.00 €
B8: Projekt 4 | C8: 5,400.00 € | D8: 10,800.00 € | E8: 0.00 € | F8: 0.00 € | G8: 1,200.00 € | H8: 900.00 € | I8: 5,220.00 € | J8: 10,440.00 € | K8: 0.00 € | L8: 0.00 € | M8: 1,160.00 € | N8: 870.00 €
B9: Projekt 5 | C9: 9,000.00 € | D9: 3,000.00 € | E9: 0.00 € | F9: 0.00 € | G9: 12,000.00 € | H9: 1,500.00 € | I9: 9,180.00 € | J9: 3,060.00 € | K9: 0.00 € | L9: 0.00 € | M9: 12,240.00 € | N9: 1,530.00 €
B10: Gesamtergebnis | C10: 54,000.00 € | D10: 52,200.00 € | E10: 24,000.00 € | F10: 29,000.00 € | G10: 13,200.00 € | H10: 9,000.00 € | I10: 54,360.00 € | J10: 51,540.00 € | K10: 25,650.00 € | L10: 28,900.00 € | M10: 13,400.00 € | N10: 9,060.00 €
